fUST/lending_fUST_20250930
["ID","MTS","AMOUNT","RATE_DAILY","PERIOD"]
[388459064,1759176790283,-480.0,0.00022801,2]
[388459065,1759176790448,-1052.41,0.00022801,2]
[388459066,1759176790477,-480.0,0.00022801,2]
[388459067,1759176790508,-480.0,0.00022801,2]
[388459068,1759176790535,-646.74,0.00022801,2]
[388459069,1759176790562,-480.0,0.00022801,2]
[388459070,1759176790590,-521.78,0.00022801,2]
[388459071,1759176790618,-480.0,0.00022801,2]
[388459072,1759176790646,-480.0,0.00022801,2]
[388459073,1759176790674,-278.15,0.00022801,2]
[388459074,1759176799164,-480.0,0.00021979,2]
[388459075,1759176799191,-480.0,0.00021979,2]
[388459076,1759176799373,-480.0,0.00021979,2]
[388459077,1759176799402,-717.0,0.00021979,2]
[388459078,1759176799429,-656.87,0.00021979,2]
[388459079,1759176799456,-787.87,0.00021981,2]
[388459080,1759176799483,-480.0,0.00021983,2]
[388459081,1759176799512,-480.0,0.00021984,2]
[388459082,1759176799540,-396.53,0.00021984,2]
[388459083,1759176799641,-83.47,0.00021984,2]
[388459084,1759176799670,-2028.56,0.0002222,2]
[388459085,1759176799698,-480.0,0.00022253,2]
[388459086,1759176799726,-480.0,0.00022253,2]
[388459087,1759176799753,-717.0,0.00022253,2]
[388459088,1759176799781,-656.87,0.00022253,2]
[388459089,1759176799813,-320.34,0.00022255,2]
[388459090,1759176799879,-467.53,0.00022255,2]
[388459091,1759176799908,-480.0,0.00022257,2]
[388459092,1759176799937,-480.0,0.00022258,2]
[388459093,1759176799966,-480.0,0.00022258,2]
[388459094,1759176799994,-2028.56,0.00022494,2]
[388459095,1759176800022,-375.3,0.00022527,2]
[388459096,1759176800050,-480.0,0.00022527,2]
[388459097,1759176809358,-480.0,0.00021979,2]
[388459098,1759176809390,-1117.6,0.00021979,2]
[388459099,1759176809424,-1847.13,0.00021979,2]
[388459100,1759176809677,-3110.55,0.00021979,2]
[388459101,1759176811501,480.0,0.00021979,2]
[388459102,1759176813871,480.0,0.00021979,2]
[388459103,1759176816896,480.0,0.00021979,2]
[388459104,1759176822865,1642.28,0.00021979,2]
[388459105,1759176823228,480.0,0.00021979,2]
[388459106,1759176824233,216.63,0.00021979,2]
[388459107,1759176824256,280.44,0.00021979,2]
[388459108,1759176828886,2578.38422745,0.00021979,2]
[388459109,1759176832460,480.0,0.00021979,2]
[388459110,1759176832853,480.0,0.00021979,2]
[388459111,1759176838994,847.69,0.00021979,2]
[388459112,1759176840466,1683.65,0.00021979,2]
[388459113,1759176841100,480.0,0.00021979,2]
[388459114,1759176843269,480.0,0.00021979,2]
[388459115,1759176847925,480.0,0.00021979,2]
[388459116,1759176858902,480.0,0.00021979,2]
[388459117,1759176859073,1729.84577255,0.00021979,2]
[388459118,1759176859095,3270.15422745,0.00021979,2]
[388459119,1759176861937,596.38,0.00021979,2]
[388459120,1759176862899,480.0,0.00021979,2]
[388459122,1759176874020,1248.13,0.00021979,2]
[388459123,1759176874748,3942.23148475,0.00021979,2]
[388459124,1759176876223,463.1142878,0.00021979,2]
[388459125,1759176876246,16.8857122,0.00021979,2]
[388459126,1759176881639,480.0,0.00021979,2]
[388459127,1759176883108,2374.68547344,0.00021979,2]
[388459128,1759176886563,586.43,0.00021979,2]
[388459129,1759176887880,725.12,0.00021979,2]
[388459130,1759176887906,967.45,0.00021979,2]
[388459131,1759176889875,606.83,0.00021979,2]
[388459132,1759176897472,505.9,0.00021979,2]
[388459133,1759176898105,3548.68229411,0.00021979,2]
[388459134,1759176902156,188.02652025,0.00021979,2]
[388459135,1759176902179,291.97347975,0.00021979,2]
[388459136,1759176907622,480.0,0.00021979,2]
[388459137,1759176909530,584.2,0.00021979,2]
[388459138,1759176912258,1093.28,0.00021979,2]
[388459139,1759176916758,480.0,0.00021979,2]
[388459140,1759176924909,678.23,0.00021979,2]
[388459141,1759176928704,486.85,0.00021979,2]
[388459142,1759176929266,480.0,0.00021979,2]
[388459143,1759176933501,603.97,0.00021979,2]
[388459144,1759176937520,4821.50652025,0.00021229,2]
[388459145,1759176937541,178.49347975,0.00021229,2]
[388459146,1759176937865,480.0,0.00021979,2]
[388459147,1759176940811,480.0,0.00021979,2]
[388459148,1759176941374,480.0,0.00021979,2]
[388459149,1759176948489,3343.37,0.00021979,2]
[388459150,1759176951777,485.86,0.00021979,2]
[388459151,1759176955486,1256.33,0.00021979,2]
[388459152,1759176962092,1196.78,0.00021979,2]
[388459153,1759176966134,679.41,0.00021979,2]
[388459154,1759176968217,480.0,0.00021979,2]
[388459155,1759176970925,480.0,0.00021979,2]
[388459156,1759176977310,459.76652025,0.00021979,2]
[388459157,1759176977332,20.23347975,0.00021979,2]
[388459158,1759176977457,-300.0,0.00021981,2]
[388459159,1759176977481,-187.97996752,0.00021982,2]
[388459160,1759176977865,639.28,0.00021979,2]
[388459161,1759176983272,480.0,0.00021979,2]
[388459162,1759176993748,480.0,0.00021979,2]
[388459164,1759176998378,480.0,0.00021979,2]
[388459166,1759177001209,2929.4,0.00021979,2]
[388459167,1759177004402,480.0,0.00021979,2]
[388459168,1759177005062,480.0,0.00021979,2]
[388459169,1759177011764,493.96,0.00021979,2]
[388459172,1759177018568,480.0,0.00021979,2]
[388459173,1759177021426,1313.06,0.00021979,2]
[388459174,1759177032525,480.0,0.00021979,2]
[388459175,1759177035743,480.0,0.00021979,2]
[388459176,1759177040721,487.1,0.00021979,2]
[388459177,1759177051134,276.97652025,0.00021979,2]
[388459178,1759177051157,2522.84347975,0.00021979,2]
[388459179,1759177053483,154.25485045,0.00021979,2]
[388459180,1759177057242,480.0,0.00021979,2]
[388459181,1759177061940,480.0,0.00021979,2]
[388459182,1759177065547,480.0,0.00021979,2]
[388459183,1759177068820,722.21,0.00021979,2]
[388459184,1759177074429,1028.16,0.00021979,2]
[388459185,1759177080357,712.65176977,0.00021884,2]
[388459186,1759177081305,480.0,0.00021979,2]
[388459187,1759177084293,153.2787178,0.0002194,5]
[388459188,1759177084846,722.8,0.00021979,2]
[388459189,1759177092823,480.0,0.00021979,2]
[388459190,1759177097918,585.1,0.00021979,2]
[388459191,1759177110023,-1200.0,0.00021981,2]
[388459192,1759177110053,-300.0,0.00021981,2]
[388459193,1759177110082,-160.0,0.00021982,2]
[388459194,1759177110109,-112.02003248,0.00021982,2]
[388459195,1759177110137,-300.0,0.00021982,2]
[388459196,1759177110165,-300.0,0.00021982,2]
[388459197,1759177110193,-300.0,0.00021982,2]
[388459198,1759177110220,-1200.0,0.00021982,2]
[388459199,1759177110248,-480.0,0.00021982,2]
[388459200,1759177110275,-480.0,0.00021982,2]
[388459201,1759177110738,-480.0,0.00021983,2]
[388459202,1759177110766,-480.0,0.00021983,2]
[388459203,1759177110794,-480.0,0.00021983,2]
[388459204,1759177110823,-480.0,0.00021983,2]
[388459205,1759177110851,-480.0,0.00021983,2]
[388459206,1759177110878,-480.0,0.00021983,2]
[388459207,1759177110906,-480.0,0.00021983,2]
[388459208,1759177110942,-480.0,0.00021983,2]
[388459209,1759177110974,-480.0,0.00021983,2]
[388459210,1759177111002,-480.0,0.00021983,2]
[388459211,1759177111052,-480.0,0.00021983,2]
[388459212,1759177111082,-480.0,0.00021983,2]
[388459213,1759177119860,-175.79473649,0.00021983,2]
[388459214,1759177119889,-320.02593779,0.00021983,2]
[388459215,1759177119920,-500.0,0.00021983,2]
[388459216,1759177119950,-471.48345272,0.00021983,2]
[388459217,1759177120508,-362.06617763,0.00021982,2]
[388459218,1759177121096,-1476.6513878,0.00021983,2]
[388459219,1759177121138,-10000.01,0.00021983,2]
[388459220,1759177121195,-10000.01,0.00021983,2]
[388459221,1759177129940,-494.56,0.00021979,2]
[388459222,1759177129971,-480.0,0.00021979,2]
[388459223,1759177130000,-480.0,0.00021982,2]
[388459224,1759177130031,-500.0,0.00021982,2]
[388459225,1759177130063,-500.0,0.00021982,2]
[388459226,1759177130093,-391.70282845,0.00021982,2]
[388459227,1759177130126,-500.0,0.00021982,2]
[388459228,1759177130157,-500.0,0.00021982,2]
[388459229,1759177130189,-500.0,0.00021982,2]
[388459230,1759177130219,-500.0,0.00021982,2]
[388459231,1759177130331,-500.0,0.00021982,2]
[388459232,1759177130361,-500.0,0.00021982,2]
[388459233,1759177130393,-500.0,0.00021982,2]
[388459234,1759177130424,-500.0,0.00021982,2]
[388459235,1759177130454,-500.0,0.00021982,2]
[388459236,1759177130483,-500.0,0.00021982,2]
[388459237,1759177130512,-500.0,0.00021982,2]
[388459238,1759177130543,-500.0,0.00021982,2]
[388459239,1759177130575,-500.0,0.00021982,2]
[388459240,1759177130604,-500.0,0.00021982,2]
[388459241,1759177130756,-500.0,0.00021982,2]
[388459242,1759177130787,-500.0,0.00021982,2]
[388459243,1759177130818,-500.0,0.00021982,2]
[388459244,1759177130848,-500.0,0.00021982,2]
[388459245,1759177130878,-500.0,0.00021982,2]
[388459246,1759177130909,-500.0,0.00021982,2]
[388459247,1759177131270,-500.0,0.00021982,2]
[388459248,1759177131302,-500.0,0.00021982,2]
[388459249,1759177131331,-500.0,0.00021982,2]
[388459250,1759177131360,-500.0,0.00021982,2]
[388459251,1759177131599,-307.35909666,0.00021982,2]
[388459252,1759177131630,-500.0,0.00021982,2]
[388459253,1759177131684,-500.0,0.00021982,2]
[388459254,1759177132078,-307.5043431,0.00021983,2]
[388459255,1759177132094,-7385.29180668,0.00021983,2]
[388459256,1759177132108,-10000.01,0.00021983,2]
[388459257,1759177132123,-10000.01,0.00021983,2]
[388459258,1759177132142,-830.51246242,0.00021983,2]
[388459259,1759177132152,-480.0,0.00021984,2]
[388459260,1759177132161,-538.67,0.00021984,2]
[388459261,1759177132170,-1662.57,0.00021984,2]
[388459262,1759177132179,-480.0,0.00021984,2]
[388459263,1759177132188,-585.54,0.00021984,2]
[388459264,1759177132197,-480.0,0.00021984,2]
[388459265,1759177132207,-480.0,0.00021984,2]
[388459266,1759177132216,-1456.25,0.00021984,2]
[388459267,1759177132225,-480.0,0.00021984,2]
[388459268,1759177132235,-689.93,0.00021984,2]
[388459269,1759177132245,-480.0,0.00021984,2]
[388459270,1759177132255,-560.84,0.00021984,2]
[388459271,1759177132264,-480.0,0.00021984,2]
[388459272,1759177132273,-315.69753758,0.00021984,2]
[388459273,1759177139917,-500.0,0.00021982,2]
[388459274,1759177139946,-164.30246242,0.00021984,2]
[388459275,1759177139974,-480.0,0.00021984,2]
[388459276,1759177140002,-480.0,0.00021984,2]
[388459277,1759177140030,-480.0,0.00021984,2]
[388459278,1759177140060,-480.0,0.00021984,2]
[388459279,1759177140128,-500.0,0.00022,2]
[388459280,1759177140158,-181.17,0.0002221,10]
[388459281,1759177140188,-480.0,0.0002222,2]
[388459282,1759177140216,-480.0,0.0002222,2]
[388459283,1759177140246,-595.15507516,0.0002222,2]
[388459284,1759177140332,-358.75492484,0.0002222,2]
[388459285,1759177140361,-698.32,0.0002222,2]
[388459286,1759177140391,-480.0,0.0002222,2]
[388459287,1759177140420,-480.0,0.0002222,2]
[388459288,1759177140450,-1249.39,0.0002222,2]
[388459289,1759177140485,-480.0,0.0002222,2]
[388459290,1759177140515,-480.0,0.0002222,2]
[388459291,1759177140542,-480.0,0.0002222,2]
[388459292,1759177140570,-87.08015032,0.0002222,2]
[388459293,1759177140678,-412.91984968,0.0002222,2]
[388459294,1759177140704,-480.0,0.0002222,2]
[388459295,1759177140735,-296.56919635,0.0002222,2]
[388459296,1759177140763,-500.0,0.0002222,2]
[388459297,1759177140792,-588.88183628,0.0002222,2]
[388459298,1759177140821,-765.79,0.0002222,2]
[388459299,1759177140849,-480.0,0.0002222,2]
[388459300,1759177140877,-657.25,0.0002222,2]
[388459301,1759177140905,-566.14823538,0.0002222,2]
[388459302,1759177141059,-504.89176462,0.0002222,2]
[388459303,1759177141089,-480.0,0.0002222,2]
[388459304,1759177141117,-480.0,0.0002222,2]
[388459305,1759177141146,-480.0,0.0002222,2]
[388459306,1759177141174,-480.0,0.0002222,2]
[388459307,1759177141202,-399.11647076,0.0002222,2]
[388459308,1759177141737,-397.45006838,0.0002222,2]
[388459309,1759177141756,-480.0,0.0002222,2]
[388459310,1759177141771,-3474.54346086,0.0002222,2]
[388459311,1759177141780,-571.54,0.0002222,2]
[388459312,1759177141789,-705.02653914,0.0002222,2]
[388459315,1759177180163,-698.46,0.00021979,2]
[388459316,1759177180191,-538.14,0.00021979,2]
[388459317,1759177180219,-589.75,0.00021979,2]
[388459318,1759177180247,-480.0,0.00021979,2]
[388459319,1759177180277,-500.0,0.00021982,2]
[388459320,1759177180307,-500.0,0.00021982,2]
[388459321,1759177180337,-500.0,0.00021982,2]
[388459322,1759177180366,-500.0,0.00021982,2]
[388459323,1759177180395,-250.0,0.00021982,2]
[388459324,1759177180422,-387.31,0.00021982,2]
[388459325,1759177180587,-112.69,0.00021982,2]
[388459326,1759177180614,-500.0,0.00021982,2]
[388459327,1759177180641,-500.0,0.00021982,2]
[388459328,1759177180672,-500.0,0.00021982,2]
[388459329,1759177180700,-171.85902709,0.00021982,2]
[388459330,1759177180731,-500.0,0.00021982,2]
[388459331,1759177180760,-500.0,0.00021982,2]
[388459332,1759177180789,-500.0,0.00021982,2]
[388459333,1759177180819,-500.0,0.00021982,2]
[388459334,1759177180850,-250.0,0.00021982,2]
[388459335,1759177180878,-300.0,0.00022219,2]
[388459336,1759177180905,-481.38661276,0.00022219,2]
[388459337,1759177180997,-582.34207422,0.00022219,2]
[388459338,1759177181025,-868.82346086,0.0002222,2]
[388459339,1759177181054,-1196.12,0.0002222,2]
[388459340,1759177181084,-1613.5,0.0002222,2]
[388459341,1759177181113,-672.23892984,0.0002222,2]
[388459342,1759177181267,-133.96107016,0.0002222,2]
[388459343,1759177181296,-559.86,0.0002222,2]
[388459344,1759177181330,-480.0,0.0002222,2]
[388459345,1759177181359,-649.97,0.0002222,2]
[388459346,1759177181386,-694.91,0.0002222,2]
[388459347,1759177181413,-578.81,0.0002222,2]
[388459348,1759177181441,-1047.72,0.0002222,2]
[388459349,1759177181496,-480.0,0.0002222,2]
[388459350,1759177181746,-3204.06,0.0002222,2]
[388459351,1759177181773,-567.78,0.00022243,3]
[388459352,1759177181801,-754.9,0.00022247,10]
[388459353,1759177181829,-150.98,0.00022248,10]
[388459354,1759177181858,-104.27660026,0.00022252,2]
[388459355,1759177182029,-436.01679948,0.00022252,2]
[388459356,1759177182058,-480.0,0.00022252,2]
[388459357,1759177182085,-480.0,0.00022252,2]
[388459358,1759177182114,-480.0,0.00022252,2]
[388459359,1759177182142,-480.0,0.00022252,2]
[388459360,1759177182170,-625.27,0.00022252,2]
[388459361,1759177182198,-480.0,0.00022252,2]
[388459362,1759177182225,-480.0,0.00022252,2]
[388459363,1759177182253,-480.0,0.00022252,2]
[388459364,1759177182280,-480.0,0.00022252,2]
[388459365,1759177182373,-480.0,0.00022252,2]
[388459366,1759177182401,-480.0,0.00022252,2]
[388459367,1759177182429,-480.0,0.00022252,2]
[388459368,1759177182456,-480.0,0.00022252,2]
[388459369,1759177182483,-390.45165504,0.00022252,2]
[388459370,1759177182510,-480.0,0.00022252,2]
[388459371,1759177182537,-480.0,0.00022252,2]
[388459372,1759177182565,-480.0,0.00022252,2]
[388459373,1759177182593,-475.696349,0.00022252,2]
[388459374,1759177182621,-480.0,0.00022252,2]
[388459375,1759177182648,-163.80476723,0.00022252,2]
[388459376,1759177183442,-37.93528481,0.00022252,2]
[388459377,1759177183457,-480.0,0.00022252,2]
[388459378,1759177183471,-480.0,0.00022252,2]
[388459379,1759177183489,-475.696349,0.00022219,2]
[388459380,1759177183508,-4.303651,0.00022219,2]
[388459381,1759177183517,-28.09471519,0.00022252,2]
[388459382,1759177183526,-447.60163381,0.00022252,2]
[388459383,1759177183540,-32.39836619,0.00022252,2]
[388459384,1759177183549,-131.40640104,0.00022252,2]
[388459385,1759177183566,-260.10445746,0.00022252,2]
[388459386,1759177190030,-480.0,0.0002222,2]
[388459387,1759177190057,-88.4891415,0.00022252,2]
[388459388,1759177190085,-480.0,0.00022252,2]
[388459389,1759177190114,-480.0,0.00022252,2]
[388459390,1759177190146,-480.0,0.00022252,2]
[388459391,1759177190175,-480.0,0.00022252,2]
[388459392,1759177190361,-480.0,0.00022252,2]
[388459393,1759177190395,-480.0,0.00022252,2]
[388459394,1759177190422,-480.0,0.00022252,2]
[388459395,1759177190451,-480.0,0.00022252,2]
[388459396,1759177190479,-480.0,0.00022252,2]
[388459397,1759177190590,-480.0,0.00022252,2]
[388459398,1759177190618,-2012.62,0.00022252,2]
[388459399,1759177190646,-480.0,0.00022252,2]
[388459400,1759177190679,-1870.52,0.00022252,2]
[388459401,1759177190743,-313.73,0.00022252,2]
[388459402,1759177190770,-501.34,0.00022252,2]
[388459403,1759177190798,-480.0,0.00022252,2]
[388459404,1759177190826,-480.0,0.00022252,2]
[388459405,1759177190855,-480.0,0.00022252,2]
[388459406,1759177190888,-480.0,0.00022252,2]
[388459407,1759177190917,-480.0,0.00022252,2]
[388459408,1759177190946,-480.0,0.00022252,2]
[388459409,1759177190975,-782.53,0.00022252,2]
[388459410,1759177191003,-216.36043294,0.00022252,2]
[388459411,1759177191142,-1283.87,0.00022252,2]
[388459412,1759177191169,-480.0,0.00022252,2]
[388459413,1759177191199,-480.0,0.00022252,2]
[388459414,1759177191231,-480.0,0.00022252,2]
[388459415,1759177191258,-480.0,0.00022252,2]
[388459416,1759177191286,-626.87,0.00022252,2]
[388459417,1759177191314,-480.0,0.00022252,2]
[388459418,1759177191343,-480.0,0.00022252,2]
[388459419,1759177191537,-480.0,0.00022252,2]
[388459420,1759177191569,-719.14,0.00022252,2]
[388459421,1759177191599,-480.0,0.00022252,2]
[388459422,1759177191628,-480.0,0.00022252,2]
[388459423,1759177191661,-481.60832137,0.00022252,2]
[388459424,1759177191697,-480.0,0.00022252,2]
[388459425,1759177191729,-669.23,0.00022252,2]
[388459426,1759177191758,-480.0,0.00022252,2]
[388459427,1759177191787,-545.88335726,0.00022252,2]
[388459428,1759177191938,-368.28664274,0.00022252,2]
[388459429,1759177191967,-480.0,0.00022252,2]
[388459430,1759177191996,-480.0,0.00022252,2]
[388459431,1759177192026,-500.0,0.00022252,2]
[388459432,1759177192054,-480.0,0.00022253,2]
[388459433,1759177192083,-480.0,0.00022253,2]
[388459434,1759177192111,-497.07,0.00022253,2]
[388459435,1759177192140,-480.0,0.00022253,2]
[388459436,1759177192168,-480.0,0.00022253,2]
[388459437,1759177192198,-661.60671452,0.00022253,2]
[388459438,1759177193223,-415.70695077,0.00021979,2]
[388459439,1759177193243,-64.29304923,0.00021979,2]
[388459440,1759177193253,-186.08328548,0.00022253,2]
[388459441,1759177193263,-229.62366529,0.00022253,2]
[388459442,1759177193290,-250.37633471,0.00022253,2]
[388459443,1759177193299,-229.62366529,0.00022253,2]
[388459444,1759177193314,-250.37633471,0.00022253,2]
[388459445,1759177193323,-480.0,0.00022253,2]
[388459446,1759177193333,-117.31366529,0.00022253,2]
[388459447,1759177204943,-160.23361501,0.00021245,2]
[388459449,1759177220072,-422.65271089,0.00021245,2]
[388459450,1759177220101,-480.0,0.00021979,2]
[388459451,1759177220130,-500.0,0.00021979,2]
[388459452,1759177220159,-523.21,0.00021979,2]
[388459453,1759177220187,-480.0,0.00021979,2]
[388459454,1759177220216,-300.0,0.00021981,2]
[388459455,1759177220244,-300.0,0.00021981,2]
[388459456,1759177220272,-300.0,0.00021981,2]
[388459457,1759177220299,-1200.0,0.00021981,2]
[388459458,1759177220487,-988.28457822,0.00021982,2]
[388459459,1759177220516,-10000.01,0.00021982,2]
[388459460,1759177220545,-10000.01,0.00021982,2]
[388459461,1759177220561,-10000.01,0.00021982,2]
[388459462,1759177220658,-10000.01,0.00021982,2]
[388459463,1759177220837,-988.33457822,0.00021982,2]
[388459464,1759177220863,-8023.34084356,0.00021982,2]
[388459465,1759177235042,-1535.7,0.00021979,2]
[388459466,1759177235074,-480.0,0.00021979,2]
[388459467,1759177235107,-480.0,0.00021979,2]
[388459468,1759177235141,-500.0,0.00021982,2]
[388459469,1759177235174,-500.0,0.00021982,2]
[388459470,1759177235206,-500.0,0.00021982,2]
[388459471,1759177235239,-500.0,0.00021982,2]
[388459472,1759177235269,-500.0,0.00021982,2]
[388459473,1759177235829,-500.0,0.00021982,2]
[388459474,1759177235860,-500.0,0.00021982,2]
[388459475,1759177235891,-500.0,0.00021982,2]
[388459476,1759177235923,-500.0,0.00021982,2]
[388459477,1759177235954,-500.0,0.00021982,2]
[388459478,1759177235988,-500.0,0.00021982,2]
[388459479,1759177236020,-500.0,0.00021982,2]
[388459480,1759177236052,-500.0,0.00021982,2]
[388459481,1759177236083,-500.0,0.00021982,2]
[388459482,1759177236114,-500.0,0.00021982,2]
[388459483,1759177236185,-500.0,0.00021982,2]
[388459484,1759177236217,-500.0,0.00021982,2]
[388459485,1759177236248,-500.0,0.00021982,2]
[388459486,1759177236284,-500.0,0.00021982,2]
[388459487,1759177236316,-500.0,0.00021982,2]
[388459488,1759177236347,-500.0,0.00021982,2]
[388459489,1759177236378,-500.0,0.00021982,2]
[388459490,1759177236410,-500.0,0.00021982,2]
[388459491,1759177236439,-500.0,0.00021982,2]
[388459492,1759177236469,-500.0,0.00021982,2]
[388459493,1759177236596,-500.0,0.00021982,2]
[388459494,1759177236627,-500.0,0.00021982,2]
[388459495,1759177236660,-500.0,0.00021982,2]
[388459496,1759177236695,-500.0,0.00021982,2]
[388459497,1759177236728,-238.24897291,0.00021982,2]
[388459498,1759177236761,-500.0,0.00021982,2]
[388459499,1759177236791,-500.0,0.00021982,2]
[388459500,1759177236821,-500.0,0.00021982,2]
[388459501,1759177236851,-500.0,0.00021982,2]
[388459502,1759177236883,-500.0,0.00021982,2]
[388459503,1759177236915,-23.51205418,0.00021982,2]
[388459504,1759177237535,-0.02,0.00021982,2]
[388459505,1759177237554,-476.46794582,0.00021982,2]
[388459506,1759177237563,-23.53205418,0.00021982,2]
[388459507,1759177285193,-490.42,0.00021979,2]
[388459508,1759177285224,-480.0,0.00021979,2]
[388459509,1759177285253,-480.0,0.00021979,2]
[388459510,1759177285282,-480.0,0.00021979,2]
[388459511,1759177285311,-480.0,0.00021979,2]
[388459512,1759177285342,-480.0,0.00021979,2]
[388459513,1759177285371,-480.0,0.00021979,2]
[388459514,1759177285400,-300.0,0.0002198,2]
[388459515,1759177285427,-500.0,0.00021981,2]
[388459516,1759177285455,-500.0,0.00021981,2]
[388459517,1759177285483,-241.31766968,0.00021981,2]
[388459518,1759177285596,-480.0,0.00021979,2]
[388459519,1759177285625,-500.0,0.00021981,2]
[388459520,1759177285654,-500.0,0.00021981,2]
[388459521,1759177285686,-500.0,0.00021981,2]
[388459522,1759177285715,-500.0,0.00021981,2]
[388459523,1759177285746,-500.0,0.00021981,2]
[388459524,1759177285777,-500.0,0.00021981,2]
[388459525,1759177285806,-500.0,0.00021981,2]
[388459526,1759177285835,-500.0,0.00021981,2]
[388459527,1759177285865,-500.0,0.00021981,2]
[388459528,1759177286049,-500.0,0.00021981,2]
[388459529,1759177286079,-500.0,0.00021981,2]
[388459530,1759177286109,-500.0,0.00021981,2]
[388459531,1759177286140,-500.0,0.00021981,2]
[388459532,1759177286169,-500.0,0.00021981,2]
[388459533,1759177286197,-500.0,0.00021981,2]
[388459534,1759177286225,-500.0,0.00021981,2]
[388459535,1759177286253,-500.0,0.00021981,2]
[388459536,1759177286281,-500.0,0.00021981,2]
[388459537,1759177286308,-430.86373028,0.00021981,2]
[388459538,1759177286407,-480.0,0.0002222,2]
[388459539,1759177286435,-657.72,0.0002222,2]
[388459540,1759177286464,-3183.88,0.0002222,2]
[388459541,1759177286491,-509.81,0.0002222,2]
[388459542,1759177286862,-1258.35,0.0002222,2]
[388459543,1759177286892,-480.0,0.0002222,2]
[388459544,1759177286921,-500.0,0.0002222,2]
[388459545,1759177286951,-2683.16,0.0002222,2]
[388459546,1759177287012,-480.0,0.00022251,2]
[388459547,1759177287041,-480.0,0.00022251,2]
[388459548,1759177287071,-480.0,0.00022251,2]
[388459549,1759177287101,-480.0,0.00022251,2]
[388459550,1759177287131,-1065.43,0.00022251,2]
[388459551,1759177287160,-480.0,0.00022251,2]
[388459552,1759177287192,-480.0,0.00022251,2]
[388459553,1759177287223,-480.0,0.00022251,2]
[388459554,1759177287253,-480.0,0.00022251,2]
[388459555,1759177287418,-480.0,0.00022251,2]
[388459556,1759177287448,-480.0,0.00022251,2]
[388459557,1759177287477,-480.0,0.00022251,2]
[388459558,1759177287506,-480.0,0.00022251,2]
[388459559,1759177287535,-2266.83,0.00022251,2]
[388459560,1759177287564,-480.0,0.00022251,2]
[388459561,1759177287593,-145.74214994,0.00022251,2]
[388459562,1759177288483,-480.0,0.00021981,2]
[388459563,1759177288499,-374.86570012,0.00022251,2]
[388459564,1759177288508,-105.13429988,0.00022251,2]
[388459565,1759177288524,-374.86570012,0.00022251,2]
[388459566,1759177288533,-145.74214994,0.00022251,2]
[388459567,1759177305220,-559.72,0.00021979,2]
[388459568,1759177305250,-480.0,0.00021979,2]
[388459569,1759177305279,-480.0,0.00021981,2]
[388459570,1759177305307,-480.0,0.0002222,2]
[388459571,1759177305336,-1970.80785006,0.00022251,2]